bitfinex/quotes_ETHUSD_20240927
["timestamp","ask_amount","ask_price","bid_price","bid_amount"]
[1727424316447,0.8298,2669.0,2668.6,0.55]
[1727424316866,0.8298,2669.3,2668.9,0.55]
[1727424317331,0.8298,2669.3,2668.8,4.29699]
[1727424317661,0.8298,2669.3,2668.8,0.55]
[1727424318660,0.8298,2669.3,2668.6,0.55]
[1727424318876,0.8054,2669.2,2668.6,0.55]
[1727424319167,0.8054,2669.0,2668.2,3.74783]
[1727424319381,0.8054,2669.0,2668.1,0.7616]
[1727424319518,0.45594741,2669.0,2668.0,0.3759]
[1727424319720,0.8054,2668.9,2668.0,0.3759]
[1727424319964,0.8054,2668.7,2668.0,0.3759]
[1727424320168,0.8054,2668.7,2668.0,0.95472386]
[1727424320662,0.8054,2668.7,2668.0,4.70283386]
[1727424320828,0.8054,2668.7,2668.1,0.55]
[1727424321024,0.8054,2668.7,2668.2,0.07495338]
[1727424321232,0.8054,2668.7,2668.4,0.55]
[1727424324569,0.8054,2668.7,2668.3,7.29757]
[1727424324771,0.8054,2668.7,2668.5,0.55]
[1727424326365,0.8054,2668.7,2668.4,0.55]
[1727424326758,0.8054,2668.7,2668.3,0.55]
[1727424328376,0.8054,2668.7,2668.3,4.29761]
[1727424328571,0.8054,2668.7,2668.3,5.484399]
[1727424329601,0.7529,2669.1,2668.3,5.484399]
[1727424329808,0.7529,2669.1,2668.6,5.06147]
[1727424329972,0.7529,2669.1,2668.6,5.13640764]
[1727424330173,0.7529,2669.1,2668.8,0.55]
[1727424330389,0.7529,2669.1,2668.9,0.07493214]
[1727424330714,0.76120401,2669.5,2669.1,4.29657]
[1727424330910,0.76120401,2669.5,2669.1,4.802647]
[1727424332408,0.76120401,2669.5,2669.3,0.55]
[1727424332983,0.00830401,2669.5,2669.3,4.29624]
[1727424333189,0.00830401,2669.5,2669.3,4.29625]
[1727424333422,0.00830401,2669.5,2669.3,5.15862558]
[1727424334625,0.8032,2669.7,2669.3,5.15862558]
[1727424337932,3.87939327,2670.2,2669.5,4.29591]
[1727424337933,0.8138,2669.9,2669.5,4.29591]
[1727424338118,0.8138,2669.9,2669.5,0.55]
[1727424338427,0.8138,2669.9,2669.5,1.14374156]
[1727424341634,0.8138,2669.9,2669.4,0.55]
[1727424343724,0.8138,2669.9,2669.4,4.2961]
[1727424345236,0.8045,2669.8,2669.2,6.74643]
[1727424346438,0.8045,2669.8,2669.3,0.55]
[1727424347579,0.92691327,2670.2,2669.6,0.55]
[1727424347734,0.1268992,2670.2,2669.9,1.3071]
[1727424347933,0.1268992,2670.2,2669.9,4.3071]
[1727424348136,0.1268992,2670.2,2670.1,0.55]
[1727424349771,0.12089933,2670.2,2670.1,0.55]
[1727424351134,0.87429933,2670.2,2669.4,3.74609]
[1727424351339,0.7503,2670.0,2669.5,0.374609]
[1727424351539,0.7503,2670.0,2669.4,3.74609]
[1727424352575,0.7503,2670.0,2669.5,0.55]
[1727424354651,0.7503,2670.0,2669.5,4.29595]
[1727424356060,0.7503,2670.0,2669.6,3.74583]
[1727424356258,0.7503,2670.0,2669.7,0.55]
[1727424356984,0.7503,2670.0,2669.6,3.74583]
[1727424356985,0.7503,2670.0,2669.6,0.55]
[1727424357487,0.7503,2670.0,2669.6,4.29586]
[1727424357652,0.12089933,2670.2,2669.9,0.55]
[1727424357840,0.12089933,2670.2,2670.1,0.55]
[1727424358041,0.12089933,2670.2,2670.1,4.29517]
[1727424358245,0.12089933,2670.2,2670.1,0.55]
[1727424358479,0.12089933,2670.2,2670.1,4.29517]
[1727424361484,0.12089933,2670.2,2670.1,0.55]
[1727424362566,0.12089933,2670.2,2669.8,7.491]
[1727424362883,0.8247,2670.1,2669.9,4.29544]
[1727424363596,0.8247,2670.1,2669.9,0.55]
[1727424365586,0.8247,2670.1,2669.6,6.74584]
[1727424365900,0.8247,2670.1,2669.6,6.74579]
[1727424366044,0.8247,2670.1,2669.7,3.74573]
[1727424366247,0.8247,2670.1,2669.6,3.0]
[1727424366470,0.8247,2670.1,2669.5,3.74592]
[1727424366675,0.8247,2670.1,2669.6,3.74584]
[1727424366948,0.8247,2670.1,2669.7,0.55]
[1727424367187,0.8247,2670.1,2669.7,4.29573]
[1727424367388,0.8247,2670.1,2669.7,3.74573]
[1727424367559,0.12089933,2670.2,2669.9,3.74533]
[1727424367888,0.12089933,2670.2,2670.0,0.55]
[1727424368383,0.12089933,2670.2,2670.1,4.29517]
[1727424368587,0.12089933,2670.2,2670.1,0.55]
[1727424368794,0.12089933,2670.2,2670.0,4.29528]
[1727424369092,0.12089933,2670.2,2670.0,0.55]
[1727424369287,0.12089933,2670.2,2670.0,4.29529]
[1727424371298,0.12089933,2670.2,2670.0,0.55]
[1727424371582,0.12089933,2670.2,2670.1,4.29517]
[1727424372361,0.12089933,2670.2,2670.1,5.09922]
[1727424381585,0.12089933,2670.2,2670.1,8.09922]
[1727424385208,0.12089933,2670.2,2670.1,5.09922]
[1727424387171,0.12089933,2670.2,2670.1,9.00071503]
[1727424387477,0.12089933,2670.2,2670.1,8.92582]
[1727424390305,0.12089933,2670.2,2670.1,13.26676923]
[1727424390524,0.12089933,2670.2,2670.1,13.64266923]
[1727424392817,0.12089933,2670.2,2670.1,18.96982196]
[1727424393016,0.00830401,2671.2,2671.1,8.07887]
[1727424393219,0.00830401,2671.2,2671.1,12.64550314]
[1727424394478,0.00830401,2671.2,2671.1,8.886757]
[1727424396381,0.00830401,2671.2,2671.1,8.101657]
[1727424396717,0.00830401,2671.2,2671.1,5.101657]
[1727424397615,0.00830401,2671.2,2671.1,1.357887]
[1727424397820,0.00830401,2671.2,2671.0,3.0]
[1727424397984,0.00830401,2671.2,2671.1,0.55]
[1727424399720,0.80310401,2671.2,2670.9,0.55]
[1727424400294,0.80310401,2671.2,2670.5,4.51174614]
[1727424400295,0.80310401,2671.2,2670.1,1.65925407]
[1727424400600,0.80310401,2671.2,2670.4,3.74474]
[1727424401121,0.80310401,2671.2,2670.2,3.81989259]
[1727424401122,0.80310401,2671.2,2670.5,3.74458]
[1727424401322,0.00741407,2670.9,2670.6,3.74446]
[1727424401497,0.80310401,2671.2,2670.6,3.74446]
[1727424401702,0.80310401,2671.2,2670.6,4.86925161]
[1727424402026,0.80310401,2671.2,2670.7,0.55]
[1727424402226,0.80310401,2671.2,2670.7,7.29432]
[1727424402698,0.80310401,2671.2,2670.7,0.55]
[1727424403388,0.80310401,2671.2,2670.7,4.29433]
[1727424403701,0.80310401,2671.2,2670.7,5.476199]
[1727424403900,0.00830401,2671.2,2671.0,0.55]
[1727424404612,0.00830401,2671.2,2670.7,4.926199]
[1727424404613,0.00830401,2671.2,2670.9,3.0]
[1727424405119,0.00830401,2671.2,2671.0,0.55]
[1727424406928,0.00830401,2671.2,2670.9,3.55]
[1727424407231,0.00830401,2671.2,2671.1,0.55]
[1727424409492,0.77440401,2671.2,2670.7,1.181869]
[1727424409712,0.77440401,2671.2,2670.8,3.0]
[1727424410694,0.77440401,2671.2,2670.6,3.0]
[1727424410906,0.77440401,2671.2,2670.7,0.55]
[1727424412098,0.77440401,2671.2,2670.7,4.29433]
[1727424412294,0.77440401,2671.2,2670.8,3.729433]
[1727424418098,0.77440401,2671.2,2670.8,7.473613]
[1727424418716,0.77440401,2671.2,2670.8,0.729433]
[1727424419028,0.77440401,2671.2,2670.8,3.0]
[1727424420434,0.77440401,2671.2,2670.8,6.74419]
[1727424420632,0.77440401,2671.2,2670.8,3.0]
[1727424421140,0.77440401,2671.2,2670.8,6.74418]
[1727424421500,0.77440401,2671.2,2670.8,3.0]
[1727424421696,0.77440401,2671.2,2670.8,3.729423]
[1727424422139,0.77440401,2671.2,2671.0,3.74391]
[1727424422348,0.00830401,2671.2,2671.1,3.74377]
[1727424422531,0.00830401,2671.2,2671.1,0.83572707]
[1727424422836,0.00830401,2671.2,2671.1,4.57949707]
[1727424423040,0.00830401,2671.2,2671.1,0.83572707]
[1727424425909,0.00830401,2671.2,2670.8,3.729423]
[1727424426440,0.00830401,2671.2,2670.5,4.56739]
[1727424426441,0.7725,2671.1,2670.6,3.0]
[1727424427507,0.7725,2671.1,2670.6,6.74445]
[1727424427914,0.7725,2671.1,2670.7,3.74432]
[1727424429142,0.7725,2671.1,2670.6,3.0]
[1727424429446,0.7725,2671.1,2670.6,7.45886165]
[1727424429642,0.7725,2671.1,2670.7,3.74433]
[1727424430231,0.00830401,2671.2,2670.8,4.50237]
[1727424430430,0.00830401,2671.2,2670.9,3.74393]
[1727424430631,0.00830401,2671.2,2670.8,3.7582]
[1727424430837,0.76,2671.1,2670.8,4.12168817]
[1727424431156,0.76,2671.1,2670.6,3.71440165]
[1727424431714,0.76,2671.1,2670.6,7.45885165]
[1727424432119,0.76,2671.1,2670.7,3.74432]
[1727424432636,0.76,2671.1,2670.6,3.71440165]
[1727424433215,0.76,2671.1,2670.6,6.74445]
[1727424433914,0.76,2671.1,2670.6,3.0]
[1727424434114,0.76,2671.1,2670.7,3.74421]
[1727424434412,0.76,2671.1,2670.9,3.74392]
[1727424434621,0.00830401,2671.2,2671.0,4.49263]
[1727424434819,0.00830401,2671.2,2671.0,4.567498]
[1727424435748,0.00830401,2671.2,2671.0,8.311328]
[1727424436059,0.00830401,2671.2,2671.0,8.23645]
[1727424436243,0.00830401,2671.2,2671.0,4.49263]
[1727424436417,0.00830401,2671.2,2671.1,0.831643]
[1727424436613,0.00830401,2671.2,2671.1,7.575413]
[1727424436825,0.00830401,2671.2,2671.1,7.65027579]
[1727424437054,0.00830401,2671.2,2671.1,8.44687579]
[1727424437380,0.00830401,2671.2,2671.1,8.372013]
[1727424437561,0.00830401,2671.2,2671.1,10.39471661]
[1727424437848,0.00830401,2671.2,2671.1,8.45758502]
[1727424443001,0.00830401,2671.2,2671.1,7.66098502]
[1727424443571,0.00830401,2671.2,2671.1,3.91721502]
[1727424444068,0.00830401,2671.2,2671.1,0.91721502]
[1727424444274,0.00830401,2671.2,2671.1,0.08557202]
[1727424448315,0.00830401,2671.2,2671.1,3.82934202]
[1727424448811,0.00830401,2671.2,2671.1,0.08557202]
[1727424449113,0.00830401,2671.2,2671.1,3.82934202]
[1727424449324,0.00830401,2671.2,2671.1,4.58665722]
[1727424450312,0.00830401,2671.2,2671.1,0.84288722]
[1727424450878,0.00830401,2671.2,2671.1,8.48342549]
[1727424451111,0.00830401,2671.2,2671.1,8.40855722]
[1727424455280,0.00830401,2671.2,2671.1,8.78445722]
[1727424458486,0.00830401,2671.2,2671.1,8.40855722]
[1727424464615,0.00830401,2671.2,2671.1,9.96978881]
[1727424465226,0.00830401,2671.2,2671.1,8.40855722]
[1727424465905,0.00830401,2671.2,2671.1,9.96978881]
[1727424466543,0.00830401,2671.2,2671.1,8.40855722]
[1727424466698,0.00830401,2671.2,2671.1,9.97110413]
[1727424469413,0.00830401,2671.2,2671.1,8.40855722]
[1727424472743,0.00830401,2671.2,2671.1,8.95855722]
[1727424473067,0.00830401,2671.2,2671.1,9.33375722]
[1727424474131,3.74904407,2672.7,2672.1,3.74237]
[1727424474132,0.7502,2672.2,2672.1,3.74237]
[1727424474331,0.7502,2672.2,2672.1,4.29237]
[1727424474526,0.7502,2672.2,2672.1,4.36720468]
[1727424475038,0.7502,2672.2,2672.1,4.29237]
[1727424475928,0.7502,2672.2,2671.9,3.74253]
[1727424476127,0.7502,2672.2,2672.0,0.55]
[1727424476527,0.7502,2672.2,2672.0,8.05123614]
[1727424476728,0.7502,2672.2,2672.0,5.48812275]
[1727424476965,0.7502,2672.2,2672.1,3.74237]
[1727424477140,0.7502,2672.2,2672.1,4.36720453]
[1727424477805,0.8331,2672.7,2672.2,0.55]
[1727424477981,0.8331,2672.7,2672.2,8.05095614]
[1727424478313,0.8331,2672.7,2672.2,4.30874614]
[1727424478612,0.8331,2672.7,2672.2,8.05096614]
[1727424478783,0.8331,2672.7,2672.2,4.30874614]
[1727424479003,0.8331,2672.7,2672.2,8.05097614]
[1727424479591,0.8331,2672.7,2672.2,4.29223]
[1727424479784,0.8331,2672.7,2672.2,4.36706079]
[1727424480013,0.8331,2672.7,2672.2,4.29223]
[1727424480186,0.8331,2672.7,2672.2,4.36706079]
[1727424480388,0.8331,2672.7,2672.2,4.29223]
[1727424480590,0.8331,2672.7,2672.2,0.55]
[1727424480793,0.8331,2672.7,2672.1,4.29225]
[1727424480979,0.8331,2672.7,2672.1,0.55]
[1727424481183,0.8331,2672.7,2672.1,4.29235]
[1727424481920,0.8331,2672.7,2672.1,0.55]
[1727424482495,0.8331,2672.7,2672.0,0.55]
[1727424482685,0.8331,2672.7,2671.7,8.67091614]
[1727424482686,0.8331,2672.7,2671.8,3.0]
[1727424482893,0.8331,2672.7,2671.8,3.07484291]
[1727424483191,0.8331,2672.7,2671.8,3.0]
[1727424483533,0.7778,2672.6,2671.6,3.0]
[1727424483829,0.7778,2672.4,2671.5,4.11831]
[1727424484537,0.7778,2672.4,2671.5,7.86143]
[1727424484828,0.7778,2672.4,2671.6,3.74303]
[1727424485065,0.7778,2672.4,2671.7,0.55]
[1727424485642,0.7778,2672.4,2671.6,4.29307]
[1727424485803,0.7778,2672.4,2671.6,0.55]
[1727424486008,0.7778,2672.4,2671.6,4.29302]
[1727424486316,0.7778,2672.4,2671.8,0.55]
[1727424489007,0.7778,2672.4,2671.5,4.1183]
[1727424489328,0.7656,2672.2,2671.5,4.1183]
[1727424490310,0.7656,2672.2,2671.6,0.55]
[1727424490797,0.7656,2672.2,2671.8,0.55]
[1727424491193,0.7656,2672.2,2671.6,3.74296]
[1727424491421,0.7656,2672.2,2671.6,4.29296]
[1727424492120,0.7656,2672.2,2671.8,0.55]
[1727424493859,0.7656,2672.2,2671.7,0.55]
[1727424495252,0.7656,2672.2,2671.7,3.7429]
[1727424495461,0.7656,2672.2,2671.8,0.55]
[1727424497189,0.7656,2672.2,2671.8,4.29279]
[1727424497559,0.7656,2672.2,2671.8,0.55]
[1727424498396,0.7656,2672.2,2671.5,0.55]
[1727424498615,0.757,2672.0,2671.5,0.55]
[1727424498753,0.757,2672.0,2671.4,0.55]
[1727424498952,0.824998,2672.1,2671.1,3.82926202]
[1727424498953,4.53637,2672.1,2671.1,3.82926202]
[1727424499192,4.53637,2672.1,2671.1,0.08557202]
[1727424499193,4.53664,2671.9,2671.1,0.08557202]
[1727424499362,0.7939,2671.7,2671.1,0.08557202]
[1727424499565,3.74318,2671.6,2670.7,3.74431]
[1727424499778,0.783,2671.4,2670.9,3.74395]
[1727424500300,0.783,2671.4,2670.7,3.74424]
[1727424500456,0.783,2671.4,2670.8,3.74419]
[1727424500790,0.783,2671.4,2670.9,3.74402]
[1727424500956,0.783,2671.4,2670.7,3.74424]
[1727424501156,0.7729,2671.2,2670.7,3.74424]
[1727424502451,0.7729,2671.2,2670.5,4.11978]
[1727424502662,0.7729,2671.2,2670.5,3.74458]
[1727424502880,0.7729,2671.2,2670.3,0.3752]
[1727424503077,0.7804,2671.1,2670.4,3.74472]
[1727424503376,0.7804,2671.0,2670.4,3.74472]
[1727424503767,0.8049,2670.9,2670.1,3.74512]
[1727424503968,3.74416,2670.9,2670.1,3.74512]
[1727424504188,0.7692,2670.8,2670.1,3.74512]
[1727424504807,0.8283,2670.7,2669.9,3.74541]
[1727424505016,0.457251,2670.6,2669.9,3.74541]
[1727424505304,0.457251,2670.6,2669.9,3.74534]
[1727424505305,0.8283,2670.5,2669.9,3.74534]
[1727424505480,0.8283,2670.5,2670.1,3.74517]
[1727424505684,0.8283,2670.5,2669.9,3.74534]
[1727424505882,0.8283,2670.5,2669.9,7.49069]
[1727424506085,0.8283,2670.5,2670.1,0.55]
[1727424506405,0.8283,2670.5,2670.3,3.74487]
[1727424506792,0.8283,2670.5,2670.4,0.55]
[1727424509754,0.00741407,2670.2,2669.5,3.74596]
[1727424509921,0.00741407,2669.7,2668.9,0.06501034]
[1727424510121,0.7967,2669.6,2668.9,3.74685]
[1727424510436,0.7967,2669.6,2669.1,3.74656]
[1727424510633,0.7967,2669.6,2668.9,4.121445]
[1727424510821,0.7967,2669.6,2668.5,0.7606]
[1727424511018,0.7967,2669.6,2669.0,3.74671]
[1727424512419,0.7967,2669.6,2668.8,3.74695]
[1727424512628,0.7967,2669.6,2668.6,7.49442]
[1727424512845,0.80411407,2669.6,2668.6,7.49442]
[1727424513050,0.7821,2669.4,2668.6,3.74719]
[1727424513211,0.7821,2669.4,2668.7,3.74712]
[1727424513948,0.7821,2669.4,2668.8,3.74698]
[1727424514158,0.7821,2669.4,2668.6,3.74719]
[1727424514326,0.00741407,2669.1,2668.6,3.74719]
[1727424514513,0.7526,2669.0,2668.6,3.74719]
[1727424514719,0.7526,2669.0,2668.3,3.7476]
[1727424515048,0.7526,2669.0,2668.7,3.74701]
[1727424515312,0.00741407,2669.4,2669.2,3.74632]
[1727424515454,0.7592,2669.7,2669.4,3.7461]
[1727424515649,0.7592,2669.7,2669.6,3.74587]
[1727424515853,0.7592,2669.7,2669.4,3.7461]
[1727424516085,0.7592,2669.7,2669.5,3.74598]
[1727424516293,0.8244,2670.3,2669.7,0.55]
[1727424516497,0.8244,2670.2,2669.7,0.55]
[1727424516993,0.8244,2670.2,2669.5,0.55]
[1727424520274,0.791,2670.1,2669.3,0.55]
[1727424520475,0.791,2670.1,2669.4,3.74606]
[1727424520892,0.791,2670.1,2669.5,0.55]
[1727424521415,0.791,2670.1,2669.5,4.29601]
[1727424521629,0.791,2670.1,2669.7,0.55]
[1727424522400,0.808,2670.6,2670.0,4.29531]
[1727424522758,0.808,2670.6,2670.1,0.55]
[1727424522884,0.808,2670.6,2670.1,4.29507]
[1727424524294,0.808,2670.6,2670.2,3.74499]
[1727424524501,0.808,2670.6,2670.3,0.55]
[1727424524898,0.808,2670.6,2670.2,0.55]
[1727424525633,0.808,2670.6,2670.1,0.55]
[1727424525796,0.808,2670.6,2670.0,0.55]
[1727424527635,0.808,2670.6,2670.0,4.29527]
[1727424528093,0.808,2670.6,2670.0,5.099338]
[1727424529525,0.808,2670.6,2670.2,0.55]
[1727424529930,0.808,2670.6,2670.1,0.55]
[1727424531847,0.808,2670.6,2670.5,0.55]
[1727424532002,0.7517,2671.1,2670.5,4.29452]
[1727424532201,0.7517,2671.1,2670.7,0.55]
[1727424532645,0.7517,2671.1,2670.6,0.55]
[1727424533403,0.7517,2671.1,2670.4,0.55]
[1727424533736,4.49547,2671.1,2670.4,0.55]
[1727424534547,0.7517,2671.1,2670.4,4.29472]
[1727424535453,4.49549,2671.1,2670.4,4.29472]
[1727424536445,9.04232341,2671.1,2670.1,3.7451]
[1727424536647,9.04232341,2671.1,2670.3,0.55]
[1727424536648,0.8314,2671.0,2670.3,0.55]
[1727424536817,0.8314,2671.0,2670.2,0.55]
[1727424536818,0.8314,2670.9,2670.2,0.55]
[1727424537021,0.8314,2670.8,2670.2,0.55]
[1727424537270,0.8314,2670.8,2670.2,4.29503]
[1727424537982,0.8314,2670.8,2670.2,0.55]
[1727424538462,0.8314,2670.8,2670.2,4.29503]
[1727424540217,0.8314,2670.8,2670.2,0.55]
[1727424540419,1.288935,2670.8,2670.2,0.55]
[1727424540620,1.288935,2670.8,2670.0,0.55]
[1727424540621,0.8123,2670.7,2670.0,0.55]
[1727424540923,0.8123,2670.7,2670.2,3.74502]
[1727424541137,0.8123,2670.7,2670.1,3.74507]
[1727424541461,0.7606,2671.0,2670.7,3.74432]
[1727424541671,8.051,2671.2,2670.9,3.74405]
[1727424541878,12.22741407,2671.6,2670.7,3.74424]
[1727424541879,0.751,2671.6,2671.0,4.29391]
[1727424542033,1.55684141,2671.6,2671.0,4.29391]
[1727424542239,1.55684141,2671.6,2671.1,3.74373]
[1727424542554,1.55684141,2671.6,2671.2,0.55]
[1727424542750,0.8257,2671.5,2671.2,0.55]
[1727424542957,0.8257,2671.3,2671.2,0.55]
[1727424544148,0.8269,2671.5,2671.1,3.74368]
[1727424544352,0.8269,2671.7,2671.2,0.55]
[1727424544566,0.8269,2671.7,2671.4,0.55]
[1727424544938,0.8269,2671.7,2671.3,0.55]
[1727424545141,0.8269,2671.7,2671.3,4.29348]
[1727424545335,0.8269,2671.7,2671.3,5.14761694]
[1727424545579,0.8269,2671.7,2671.3,1.40413694]
[1727424545950,0.8269,2671.7,2671.3,5.14759694]
[1727424546146,0.7618,2671.9,2671.3,5.14759694]
[1727424546747,0.7618,2671.9,2671.5,0.55]
[1727424547156,0.7618,2671.9,2671.4,0.55]
[1727424547674,4.50455,2671.9,2671.4,0.55]
[1727424547879,0.750455,2671.8,2671.2,0.55]
[1727424548071,4.50455,2671.9,2671.2,0.55]
[1727424548272,3.74284,2671.8,2671.0,0.7826]
[1727424548475,3.74284,2671.8,2671.1,0.55]
[1727424548660,0.7833,2671.7,2671.1,0.55]
[1727424548861,4.52632,2671.7,2671.0,0.55]
[1727424549286,4.52632,2671.7,2671.0,1.79264]
[1727424550977,0.7833,2671.7,2671.2,0.55]
[1727424551195,0.7833,2671.7,2671.3,0.7646]
[1727424551351,0.7833,2671.7,2671.4,0.55]
[1727424553758,0.7833,2671.7,2671.3,0.55]
[1727424553959,0.7833,2671.7,2671.2,0.55]
[1727424554152,0.7833,2671.7,2671.2,1.11112607]
[1727424554900,0.7937,2671.9,2671.4,0.55]
[1727424555056,0.7937,2671.9,2671.3,0.8159]
[1727424555057,4.53594,2672.2,2671.6,0.55]
[1727424555256,4.53594,2672.2,2671.8,0.55]
[1727424555459,4.53594,2672.2,2671.7,0.51165591]
[1727424555460,3.74239,2672.1,2671.7,0.55]
[1727424555771,3.74239,2672.1,2671.6,0.55]
[1727424555981,0.7937,2672.2,2671.6,0.55]
[1727424556160,0.7938,2671.8,2671.6,0.55]
[1727424556493,3.74293,2671.7,2671.6,0.55]
[1727424556909,3.74293,2671.7,2670.9,3.74396]
[1727424556910,3.74331,2671.5,2670.9,3.74396]
[1727424557067,0.7938,2671.2,2670.8,7.34]
[1727424557404,0.7938,2671.2,2670.6,4.50861]
[1727424557574,0.7938,2671.2,2670.7,0.450869]
[1727424557901,0.7938,2671.2,2670.7,4.195199]
[1727424559099,0.7938,2671.2,2670.7,0.450869]
[1727424559411,0.7938,2671.2,2670.8,0.55]
[1727424560392,0.7938,2671.2,2670.8,0.46725363]
[1727424561468,4.53744,2671.2,2670.8,0.46725363]
[1727424561870,0.7938,2671.2,2670.8,0.46725363]
[1727424562586,0.7938,2671.2,2670.8,4.21144363]
[1727424563000,4.53746,2671.2,2670.7,0.55]
[1727424563709,4.53746,2671.2,2670.4,3.74473]
[1727424563710,3.74388,2671.1,2670.4,3.74473]
[1727424563867,3.74388,2671.1,2670.5,3.7446]
[1727424564906,0.7938,2671.2,2670.8,0.55]
[1727424566612,3.74325,2671.5,2671.0,0.55]
[1727424566613,0.8087,2671.4,2671.0,0.55]
[1727424567106,4.55214,2671.4,2670.8,0.55]
[1727424567887,4.55214,2671.4,2670.8,4.29419]
[1727424568087,5.45735705,2671.4,2670.8,4.29419]
[1727424572093,3.74351,2671.3,2670.8,4.29419]
[1727424572492,3.74351,2671.3,2670.8,0.55]
[1727424574916,1.71391705,2671.4,2670.8,4.29418]
[1727424575133,5.45728705,2671.4,2670.8,4.29418]
[1727424575285,3.7435,2671.3,2670.8,0.55]
[1727424575615,1.71391705,2671.4,2670.8,0.55]
[1727424575828,3.74349,2671.3,2670.8,0.55]
[1727424577527,0.92006571,2671.3,2671.0,0.55]
[1727424577840,0.8087,2671.4,2671.0,0.55]
[1727424581602,0.81611407,2671.4,2671.0,0.55]
[1727424583018,0.8087,2671.4,2671.0,0.55]
[1727424583419,4.0,2671.1,2671.0,0.55]
[1727424584039,4.0,2671.1,2670.8,0.55]
[1727424584537,4.0,2671.0,2670.8,0.55]
[1727424585426,0.83026941,2671.3,2670.8,0.55]
[1727424586135,0.83026941,2671.3,2670.3,7.34]
[1727424586136,3.74408,2670.9,2670.3,7.34]
[1727424586293,0.7554,2670.8,2670.3,7.34]
[1727424586495,3.74436,2670.7,2670.1,0.7805]
[1727424586843,3.75177407,2670.7,2670.1,0.7805]
[1727424587710,3.75177407,2670.7,2670.2,0.55]
[1727424588205,3.75177407,2670.7,2670.0,0.55]
[1727424588413,4.0,2670.6,2670.0,0.55]
[1727424588625,7.7445,2670.6,2670.0,0.55]
[1727424588802,0.7766,2670.5,2670.0,0.55]
[1727424589004,0.78401407,2670.5,2670.0,0.55]
[1727424591035,0.7766,2670.5,2670.0,0.55]
[1727424591542,0.7766,2670.5,2670.0,4.29529]
[1727424595456,0.7766,2670.5,2670.2,0.55]
[1727424597110,0.7766,2670.5,2670.0,0.55]
[1727424597309,1.22945141,2670.5,2670.0,0.55]
[1727424598560,0.7544,2670.4,2669.7,3.74568]
[1727424598848,3.74569,2669.8,2669.2,3.74642]
[1727424599010,0.7755,2669.6,2669.2,3.74642]
[1727424599720,0.7755,2669.6,2669.2,3.74639]
[1727424600941,0.7755,2669.6,2669.3,0.55]
[1727424601308,0.7755,2669.6,2668.4,0.768]
[1727424601563,0.7952,2669.2,2668.4,3.7475]
[1727424601758,6.74631,2669.3,2668.2,4.54429]
[1727424601759,0.7952,2669.0,2668.2,4.54429]
[1727424602234,0.7952,2669.0,2668.3,3.74767]
[1727424602837,0.80261407,2669.0,2668.3,3.74767]
[1727424603419,4.7597,2668.9,2668.4,0.55]
[1727424604549,0.7597,2668.9,2668.4,0.55]
[1727424605863,0.7597,2668.9,2668.4,4.29753]
[1727424606566,0.7597,2668.9,2668.6,0.55]
[1727424607256,0.7597,2668.9,2668.5,0.55]
[1727424608021,0.7597,2668.9,2668.3,0.55]
[1727424608359,0.76711407,2668.9,2668.3,3.74769]
[1727424609040,0.76711407,2668.9,2668.4,0.55]
[1727424609452,3.74671,2669.1,2668.2,0.55]
[1727424609453,0.00741407,2668.6,2668.2,0.55]
[1727424609757,0.00741407,2668.4,2668.0,0.55]
[1727424610068,0.7548,2668.5,2668.0,4.29809]
[1727424610562,0.7548,2668.5,2668.1,3.74793]
[1727424610933,0.7548,2668.5,2668.2,0.55]
[1727424611135,0.7548,2668.5,2668.2,4.2978]
[1727424611467,0.7548,2668.5,2668.4,0.55]
[1727424611768,0.7788,2668.7,2668.4,0.55]
[1727424615174,0.7788,2668.7,2668.4,4.29755]
[1727424615476,0.7504,2668.6,2667.4,0.78]
[1727424615658,0.7504,2668.6,2668.1,3.74794]
[1727424615858,0.7504,2668.6,2667.9,4.54663]
[1727424616861,0.7504,2668.6,2668.0,0.55]
[1727424617242,3.74744,2668.5,2667.8,0.55]
[1727424617442,3.74744,2668.5,2667.8,4.810365]
[1727424618485,0.7504,2668.6,2667.9,3.74825]
[1727424618841,0.7504,2668.6,2668.0,0.55]
[1727424619437,4.49771,2668.6,2668.0,0.55]
[1727424620860,4.50512407,2668.6,2668.0,0.55]
[1727424621284,0.75781407,2668.6,2668.0,1.0310215]
[1727424621576,0.7504,2668.6,2668.2,0.55]
[1727424621782,4.49771,2668.6,2668.1,0.55]
[1727424622642,3.74744,2668.5,2668.1,0.55]
[1727424623397,0.7504,2668.6,2668.3,0.55]
[1727424623574,0.78621407,2668.8,2668.3,0.55]
[1727424623743,0.78621407,2668.8,2668.5,0.55]
[1727424623949,0.78621407,2668.8,2668.3,4.29757]
[1727424623950,0.7788,2668.8,2668.3,4.29757]
[1727424624251,0.7788,2668.8,2668.3,8.557947]
[1727424624457,0.7788,2668.8,2668.3,4.810347]
[1727424624642,0.7788,2668.8,2668.5,0.55]
[1727424627582,0.7863,2669.0,2668.5,4.2974]
[1727424627846,0.7863,2669.0,2668.5,1.48820372]
[1727424628042,7.3,2669.1,2668.7,0.55]
[1727424628346,0.79371407,2669.2,2668.7,0.55]
[1727424628849,0.7863,2669.2,2668.7,0.55]
[1727424632462,0.7863,2669.2,2668.7,4.29705]
[1727424632658,0.7863,2669.2,2668.7,5.26329028]
[1727424632974,0.7863,2669.2,2668.7,1.51624028]